Cogmind - Beta 11.1 @@@ ROGUE MODE // 2022.08.22 @ 13:48:59 Player: deadnoob Result: Destroyed by G-34 Mercenary with Small Laser Performance ------------- Evolutions (1) 500 Regions Visited (3) 600 Robots Destroyed (33) 165 Value Destroyed (842) 842 Prototype IDs (0) 0 Alien Tech Used (0) 0 Bonus (8) 8 TOTAL SCORE: 2115 Bonus ------- High Alert Combat Kills 8 Cogmind --------- Core Integrity 0/400 Matter 151/300 Energy 88/100 System Corruption 0% Temperature Cool (6) Movement Treading (240) Ox1 Location -9/Materials Parts ------- > --- POWER (1) -------- (None) > --- PROPULSION (3) --- Light Treads > --- UTILITY (3) ------ Large Storage Unit Visual Processing Unit Hardened Light Armor Plating > --- WEAPON (2) ------- Beam Rifle > --- INVENTORY (15) --- Heat Sink Medium Storage Unit Structural Scanner Sensor Array Sensor Array Sensor Array Targeting Computer Light Armor Plating Medium Armor Plating Medium Armor Plating Peak State ------------ > --- POWER ------------ Light Ion Engine > --- PROPULSION ------- Aluminum Leg Improved Aluminum Leg Improved Aluminum Leg > --- UTILITY ---------- Large Storage Unit Visual Processing Unit Medium Armor Plating > --- WEAPON ----------- Medium Laser Assault Rifle > --- INVENTORY -------- Improved Aluminum Leg Heat Sink Medium Storage Unit Structural Scanner Targeting Computer Light Armor Plating Medium Armor Plating Medium Armor Plating Medium Armor Plating Grenade Launcher [Rating: 14] Favorites ----------- Power Ion Engine Engine Ion Engine Propulsion Aluminum Leg Treads Light Treads Leg Aluminum Leg Wheel Wheel Utility Small Storage Unit Device Heat Sink Storage Small Storage Unit Processor Visual Processing Unit Protection Medium Armor Plating Weapon Assault Rifle Energy Gun Medium Laser Ballistic Gun Assault Rifle Launcher Rocket Launcher Build | -11 -10 -10 -9 ------- Run | Scr Mat Min Mat Slots Evolved 2 | . . . 2 Power . | . . . . Propulsion 1 | . . . 1 Utility 1 | . . . 1 Weapon . | . . . . Parts Attached 30 | 7 8 1 14 Power 2 | 1 . 1 . Engine 2 | 1 . 1 . Core . | . . . . Reactor . | . . . . Propulsion 10 | 3 3 . 4 Treads 1 | . . . 1 Leg 8 | 2 3 . 3 Wheel 1 | 1 . . . Hover . | . . . . Flight . | . . . . Utility 10 | 1 4 . 5 Device 2 | . 1 . 1 Storage 3 | 1 2 . . Processor 1 | . . . 1 Hackware . | . . . . Protection 4 | . 1 . 3 Artifact . | . . . . Weapon 8 | 2 1 . 5 Energy Gun 3 | . 1 . 2 Energy Cannon . | . . . . Ballistic Gun 3 | 2 . . 1 Ballistic Cannon . | . . . . Launcher 2 | . . . 2 Special Weapon . | . . . . Impact Weapon . | . . . . Slashing Weapon . | . . . . Piercing Weapon . | . . . . Special Melee Weapon . | . . . . Unidentified Prototypes . | . . . . Parts Lost 14 | . 1 1 12 Power 2 | . . 1 1 Propulsion 4 | . . . 4 Utility 2 | . . . 2 Weapon 6 | . 1 . 5 Highest Loss Streak 12 | . 1 1 12 To Critical Strikes . | . . . . Average Slot Usage (%) 91 | . 93 100 82 Engine 12 | . 14 14 8 Leg 27 | . 28 28 24 Device 6 | . 7 . 5 Storage 13 | . 14 14 11 Processor 1 | . . . 9 Protection 2 | . . 14 4 Energy Gun 5 | . 4 14 9 Ballistic Gun 19 | . 23 14 7 Naked Turns . | . . . . Heaviest Build 36 | 13 36 36 35 Greatest Support 36 | 10 26 26 36 Greatest Overweight (x) 9 | 1 1 1 9 Average Overweight (x) . | . . 1 . Largest Inventory Capacity 15 | 8 15 15 15 Average Capacity 10 | 7 8 15 15 Most Carried 14 | 6 12 13 14 Average Carried 8 | 3 8 12 12 Final Capacity 15 | 8 15 15 15 Final Carried 12 | 6 12 12 10 Class Distribution -------------------- 100% | Mutant Dominant Class ---------------- Mutant | -10/Materials Mutant | -10/Mines Mutant | -9/Materials Resources | -11 -10 -10 -9 ----------- Run | Scr Mat Min Mat Matter Collected 549 | 256 228 16 49 Remotely . | . . . . Salvage Created 979 | . 449 . 530 Parts 62 | . 25 . 37 Haulers Intercepted 1 | . . . 1 Recyclers Shooed 3 | . 2 . 1 Parts Field Recycled . | . . . . Retrieved Matter . | . . . . Parts Self-Destructed . | . . . . Prevented . | . . . . Kills | -11 -10 -10 -9 ------- Run | Scr Mat Min Mat Combat Hostiles Destroyed 24 | . 11 . 13 Guns 13 | . 11 . 2 AOE 11 | . . . 11 Classes Destroyed 8 | . 4 . 4 Builder 2 | . . . 2 Tunneler 1 | . . . 1 Hauler 1 | . . . 1 Recycler 3 | . 1 . 2 Watcher 2 | . 1 . 1 Swarmer 6 | . 2 . 4 Grunt 16 | . 9 . 7 Sentry 2 | . . . 2 Best Kill Streak 10 | . 4 . 10 Combat Bots Only 8 | . 3 . 8 Max Kills in Single Turn 3 | . 2 . 3 Gunslinging 1 | . 1 . . Exploded 3 | . . . 3 Melee . | . . . . Uniques/NPCs Destroyed . | . . . . Combat | -11 -10 -10 -9 -------- Run | Scr Mat Min Mat Damage Taken 2075 | . 535 217 1323 Core 537 | . 97 29 411 Absorbed by Shields . | . . . . Core Remaining (%) 74 | 100 . 49 . Volleys Fired 58 | . 42 . 16 Largest 2 | . 2 . 2 Hottest 85 | . 70 . 85 Shots Fired 102 | . 85 . 17 Gun 92 | . 85 . 7 Cannon . | . . . . Launcher 10 | . . . 10 Special . | . . . . Kinetic 79 | . 78 . 1 Thermal 13 | . 7 . 6 Explosive 10 | . . . 10 Electromagnetic . | . . . . Robot Hit Streak 5 | . 5 . 2 Robot Miss Streak 3 | . 3 . 2 Penetration Max . | . . . . Secondary Targets 2 | . 2 . . Max Gunslinging Chain 1 | . 1 . . Shots Hit Robots 57 | . 51 . 6 Core Hits 57 | . 26 . 31 Critical Kills . | . . . . Critical Parts Destroyed 1 | . 1 . . Critical Strikes 1 | . 1 . . Destroy 1 | . 1 . . Melee Attacks . | . . . . Impact . | . . . . Slashing . | . . . . Piercing . | . . . . Sneak Attacks . | . . . . Combat Hostiles . | . . . . Follow-up Attacks . | . . . . Damage Inflicted 1840 | . 564 . 1276 Guns 597 | . 551 . 46 Cannons . | . . . . Explosions 1230 | . . . 1230 Melee . | . . . . Ramming 13 | . 13 . . Kinetic 513 | . 513 . . Thermal 84 | . 38 . 46 Explosive 1230 | . . . 1230 Electromagnetic . | . . . . Impact . | . . . . Slashing . | . . . . Piercing . | . . . . Highest Corruption 1 | . 1 1 . Average Corruption 1 | . 1 1 . Corruption Purged . | . . . . Corruption Blocked . | . . . . Effects 3 | . 3 . . Message Errors 1 | . 1 . . Data Loss (minor) 1 | . 1 . . Misfires 1 | . 1 . . Overload Shots . | . . . . Overflow Damage 13 | . . . 13 Projectiles . | . . . . Explosions 13 | . . . 13 Melee . | . . . . Knockbacks . | . . . . Impact . | . . . . Kinetic . | . . . . Secondary . | . . . . Self-Inflicted Damage 94 | . . . 94 Shots 3 | . . . 3 Rammed . | . . . . Targets Rammed 2 | . 2 . . Kicked 2 | . 2 . . Crushed . | . . . . Highest Temperature 171 | . 18 21 171 Average Temperature 33 | . 8 7 55 Received Heat Transfer 849 | . 261 90 498 Siege Activations . | . . . . Robots Corrupted . | . . . . Combat Hostiles . | . . . . Parts Fried . | . . . . Impact Corruptions . | . . . . Robots Melted . | . . . . Combat Hostiles . | . . . . Parts Melted . | . . . . Heat Transferred 222 | . 111 . 111 Parts Sabotaged . | . . . . Parts Stolen . | . . . . Parts Stripped . | . . . . Power Chain Reactions . | . . . . Missiles Intercepted . | . . . . Alert | -11 -10 -10 -9 ------- Run | Scr Mat Min Mat Peak Influence 417 | . 184 28 417 Initial 13 | . . 13 6 Average 83 | . 95 15 94 Maximum Alert Level 2 | . . . 2 Low Security (%) 96 | 100 100 100 80 Level 1 3 | . . . 19 Level 2 . | . . . . Level 3 . | . . . . Level 4 . | . . . . Level 5 . | . . . . High Security . | . . . . Max Security . | . . . . Squads Dispatched 7 | . 3 . 4 Investigation 4 | . 2 . 2 Extermination . | . . . . Reinforcement 3 | . 1 . 2 Assault . | . . . . Garrison . | . . . . Intercept . | . . . . Searches Triggered . | . . . . Construction Impeded 1 | . . . 1 Haulers Reinforced . | . . . . Active Scanning Responses . | . . . . Cargo Convoy Interrupts . | . . . . Stealth | -11 -10 -10 -9 --------- Run | Scr Mat Min Mat Distress Signals 5 | . 3 . 2 Communications Jammed . | . . . . Distress Signals . | . . . . Times Spotted 43 | . 21 2 20 Peak Tracking Total 11 | . 4 2 11 Tactical Retreats 1 | . 1 . . Traps | -11 -10 -10 -9 ------- Run | Scr Mat Min Mat Traps Triggered 2 | . 2 . . Indirectly . | . . . . Trap Hack Attempts . | . . . . Triggered . | . . . . Disarmed . | . . . . Reprogrammed . | . . . . Reused . | . . . . Traps Extracted . | . . . . Installed . | . . . . Triggered . | . . . . Machines | -11 -10 -10 -9 ---------- Run | Scr Mat Min Mat Machines Disabled 4 | . . . 4 Max in Single Turn 2 | . . . 2 Machines Sabotaged . | . . . . Garrisons Compromised . | . . . . Overloaded Fab Kills . | . . . . Hacking | -11 -10 -10 -9 --------- Run | Scr Mat Min Mat Machines Accessed 10 | . 6 . 4 Terminals 9 | . 6 . 3 Fabricators . | . . . . Repair Stations . | . . . . Recycling Units . | . . . . Scanalyzers 1 | . . . 1 Garrison Access . | . . . . Total Hacks 32 | . 19 . 13 Successful 15 | . 9 . 6 Failed 17 | . 10 . 7 Catastrophic 2 | . 2 . . Database Lockouts . | . . . . Manual 26 | . 19 . 7 Terminals 30 | . 19 . 11 Fabricators . | . . . . Repair Stations . | . . . . Recycling Units . | . . . . Scanalyzers 2 | . . . 2 Garrison Access . | . . . . Terminal Hacks 4 | . 3 . 1 Branch Access Points 1 | . 1 . . Terminal Index 1 | . 1 . . Alert Level 1 | . . . 1 Recall Investigation 1 | . 1 . . Fabricator Hacks . | . . . . Repair Station Hacks . | . . . . Recycling Unit Hacks . | . . . . Scanalyzer 2 | . . . 2 Insert Component 1 | . . . 1 Analyze 1 | . . . 1 Garrison Access Hacks . | . . . . Unauthorized Hacks 9 | . 6 . 3 Terminals 9 | . 6 . 3 Botnet 9 | . 6 . 3 Fabricators . | . . . . Repair Stations . | . . . . Recycling Units . | . . . . Scanalyzers . | . . . . Garrison Access . | . . . . Data Cores Recovered . | . . . . Used . | . . . . Hacking Detections 9 | . 5 . 4 Full Trace Events 4 | . 1 . 3 Feedback Events . | . . . . Feedback Blocked . | . . . . Robot Schematics Acquired . | . . . . Robots Built . | . . . . Authchips . | . . . . Time . | . . . . Total Robot Build Rating . | . . . . Part Schematics Acquired 1 | . . . 1 Parts Built . | . . . . Authchips . | . . . . Time . | . . . . Total Part Build Rating . | . . . . Parts Repaired . | . . . . Time . | . . . . Parts Recycled . | . . . . Recycled Matter . | . . . . Retrieved Matter . | . . . . Retrieved Components . | . . . . Parts Scanalyzed 1 | . . . 1 Part Schematics Acquired 1 | . . . 1 Parts Damaged . | . . . . Bothacking | -11 -10 -10 -9 ------------ Run | Scr Mat Min Mat Used RIF Installer . | . . . . Robots Hacked . | . . . . Non-combat . | . . . . Combat . | . . . . Robot Hacks Applied . | . . . . Relay Couplers Released . | . . . . Fabnet Peak Effective % . | . . . . Robots Rewired . | . . . . Allies Hacked . | . . . . Hacks Repelled . | . . . . Allies | -11 -10 -10 -9 -------- Run | Scr Mat Min Mat Total Allies . | . . . . Largest Group . | . . . . Highest-Rated Group . | . . . . Highest-Rated Ally . | . . . . Total Orders . | . . . . Ally Attacks . | . . . . Total Damage . | . . . . Kills . | . . . . Allies Corrupted . | . . . . Allies Melted . | . . . . Intel | -11 -10 -10 -9 ------- Run | Scr Mat Min Mat Robot Analysis Total . | . . . . Derelict Logs Recovered . | . . . . Drone Launches . | . . . . Drone Recoveries . | . . . . Exploration | -11 -10 -10 -9 ------------- Run | Scr Mat Min Mat Turns Passed 1197 | 77 811 80 229 Spaces Moved 646 | 50 431 42 123 Core 6 | 3 . . 3 Treads 5 | . . . 5 Legs 606 | 18 431 42 115 Wheels 29 | 29 . . . Hover . | . . . . Flight . | . . . . Fastest Speed 50 | 50 120 190 120 Average Speed 133 | 123 127 190 141 Slowest Speed 500 | 190 190 190 500 Overloaded Moves . | . . . . Propulsion Burnouts . | . . . . Robots Hopped . | . . . . Cave-ins Triggered . | . . . . Exploration Rate (%) 28 | 5 72 17 18 Regions Visited 3 Branch Regions 1 Pre-discovered Areas . | . . . . Known Exits Taken 1 | . 1 . . Unknown Exits Taken 2 | 1 . 1 . Scrap Searched 1 | . . 1 . Spaces Dug 3 | . . . 3 Terrain Destroyed 26 | . . . 26 Melee . | . . . . Projectile . | . . . . AOE 26 | . . . 26 Terrain Rammed . | . . . . Walls Destroyed . | . . . . Machines Disabled . | . . . . Actions | -11 -10 -10 -9 --------- Run | Scr Mat Min Mat Total 884 | 63 620 43 158 Wait 118 | . 117 . 1 Move 643 | 49 430 41 123 Hop . | . . . . Pick Up 23 | 6 12 1 4 Fast Attach 12 | 7 1 . 4 Attach 8 | . 1 1 6 Detach . | . . . . Swap 10 | . 6 . 4 Drop 10 | 1 9 . . Fire 58 | . 42 . 16 Melee . | . . . . Ram . | . . . . Kick 2 | . 2 . . Crush . | . . . . Escape Stasis . | . . . . Rewire . | . . . . Trap . | . . . . Miscellaneous . | . . . . Route ------- -11/Scrapyard -10/Materials (discovered 3 exits: *Mat / *Min x2) -10/Mines -9/Materials History --------- Turn | Location | Event 11 | -11/Scrapyard | Discovered new exit (range 16) 78 | -11/Scrapyard | Entered Materials 124 | -10/Materials | Identified exit to Mines 308 | -10/Materials | Build established: Mutant 787 | -10/Materials | Discovered new exit (range 16) 889 | -10/Materials | Entered Mines 926 | -10/Mines | Discovered new exit (range 12) 960 | -10/Mines | Core integrity fell below 50% 969 | -10/Mines | Entered Materials 969 | -9/Materials | Evolved 2 slots: Propulsion x1, Utility x1 1163 | -9/Materials | Core integrity fell below 50% 1174 | -9/Materials | Core integrity fell below 20% 1198 | -9/Materials | Destroyed by G-34 Mercenary with Small Laser Last Messages --------------- 01176_ K-01 Serf collects debris. 01176_ G-34 Mercenary destroyed. 01176_ G-47 Trooper destroyed. 01176_ U-05 Engineer lays Concrete. 01178_ K-01 Serf collects debris. 01178_ G-34 Mercenary destroyed. 01178_ U-05 Engineer destroyed. 01179_ K-01 Serf collects debris. 01180_ R-06 Scavenger destroyed. 01180_ G-34 Mercenary destroyed. 01181_ Med. Armor Plating destroyed. 01181_ Rocket Launcher destroyed. 01182_ K-01 Serf collects debris. 01184_ Acquired Lgt. Treads. 01185_ K-01 Serf collects debris. 01187_ Acquired Hrd. Light Armor Plating. 01187_ R-06 Scavenger destroyed. 01188_ The unstable cave ceiling collapses. 01188_ Imp. Aluminum Leg destroyed. 01196_ Acquired Beam Rifle. Map ----- +----------------------------------------------------+ | ???????????????????????????????????????????? | | ???????????????????????????????????????????? | | ???????????????????????????????????????????? | | ???????????????????????????????????????????? | | ???????????????????????????????????????????? | | ??????????????????????????????????? ? ?????? | | ?????????????????????????????????? ?????? | | ???????????????????????????????? #??????? | | ??????????????????????????????? ##?????? | | ??????????????#######????????## %[ #?????? | | ??????????????# ???### = !! |#??????? | | ??????????????# *####"T" # ==| %##?????? | | ???????????# ## # =%=% #?????? | | ??????????? # # [%[* #??????? | | ??????????+ + # """ = #??????? | | ??????????# # """ " %! #??????? | | ??????????# # """ % #??????? | | ??????????# # """ g #??????? | | ??????????# ####### g%% g #??????? | | ??????????# """ ? | | ??????????# ^ """ ?? | | ??????????# % =!* """ ???? | | ??????????# " =g [=!% [% #?#????? | | ?#######??# %== u ##??????? | | ?# ?# !!! " """ #???????? | | ?# ""?# " %@%= T """ #???????? | | ?# """# """ * * " """ #???????? | | ?# """# #???????? | | ?# + #???????? | | ?# """# #"T"######+####### #???????? | | ?# """# #####???? ????? #???????? | | ?# ! ""?# #???????? ????? #???????? | | ?# ?# #???????? ![[#????? #???????? | | ??######### #???????? ![[#??????#???????? | | ???# # ########? ![[#??????????????? | | ???# # # #?[ #??????????????? | | ???# # # #? #??????????????? | | ???# + + #? #??????????????? | | ???# # # "" #? #??????????????? | | ???# # # S"" #???" ????????????????? | | ???######## # "" #?????????????????????? | | ??????????# ########?????????????????????? | | ??????????# #????????????????????????????? | | ??????????# #????????????????????????????? | | ??????????# #????????????????????????????? | | ??????????# #????????????????????????????? | | ??????????# #????????????????????????????? | | ???##+#???# #????????????????????????????? | | ???# #??# #????????????????????????????? | | ???# #??# #????????????????????????????? | +----------------------------------------------------+ Best States ------------- Heat Dissipation 35 Energy Generation 10 Energy Capacity 250 Matter Stores 300 Matter Capacity 300 Sight Range 18 Robot Scan Range 14 Terrain Scan Density 10 Armor Coverage 225 Evasion (%) 55 Recoil Reduction 1 Item Schematics ----------------- Imp. Aluminum Leg | -9/Materials | Scanalyzed Robot Schematics ------------------ None Fabricated ------------ Nothing Alien Tech Used ----------------- None Achievements -------------- None Challenges ------------ None Game ------ Seed MassStoragePenetrator Manual? 0 Play Time 00:12:14 Cumulative 38.2 hours Start 2022.08.22 @ 13:37:05 End 2022.08.22 @ 13:48:59 Sessions 1 Manual Loads 0 Difficulty Rogue Special Mode None Game No. 67 Rogue 67 Adventurer 0 Explorer 0 Win Type - Total 0 Types 0/0/0/0/0/0/0/0/0 Lore% 39 Gallery% 41 Achievement% 36 Wizard Run 0 Options --------- ASCII 0 Keyboard 0 Movement Numpad Keybinds 0 Fullscreen 2 Font 18/SmallcapsGlow Map View 76x50 Tactical HUD 1 Map Filters NONE Filters NONE Steam 1 RUN: 5e4ce49d-ea40-411b-b0f2-680d2bdf37a7